bitfinex-derivatives/quotes_ETHF0:USTF0_20250410
["timestamp","ask_amount","ask_price","bid_price","bid_amount"]
[1744254541576,3.6051,1635.0,1634.9,3.70294926]
[1744254541876,7.05765364,1635.1,1635.0,1.2237]
[1744254542071,5.83398364,1635.1,1635.0,6.1659]
[1744254542678,4.70757656,1635.2,1635.1,1.22363]
[1744254542983,4.70757656,1635.2,1635.1,3.69363]
[1744254543478,1.2237,1635.0,1634.9,0.00916926]
[1744254543670,3.05982,1634.8,1634.3,2.47]
[1744254543871,1.22413,1634.5,1634.3,2.47]
[1744254544076,2.2749,1634.7,1634.3,5.6778]
[1744254544380,1.22394,1634.7,1634.5,1.22403]
[1744254544774,1.22394,1634.7,1634.6,2.3204]
[1744254544982,1.22408,1634.5,1634.4,0.00916926]
[1744254545277,3.49896,1634.6,1634.4,1.23328926]
[1744254545482,3.4989,1634.6,1634.5,2.3204]
[1744254546877,1.22408,1634.5,1634.4,0.00916926]
[1744254547078,3.71438,1634.5,1634.4,0.00916926]
[1744254547880,8.39688,1634.5,1634.4,0.00916926]
[1744254550178,13.39688,1634.5,1634.4,9.26e-06]
[1744254550384,19.72620973,1634.5,1634.4,9.26e-06]
[1744254550783,1.2246,1633.8,1633.7,2.4074]
[1744254550985,1.22483,1633.5,1633.4,11.86870879]
[1744254551283,1.22483,1633.5,1633.4,56.90470879]
[1744254551885,12.10376438,1633.6,1633.2,2.4031]
[1744254552083,1.22498,1633.3,1633.2,2.4031]
[1744254552382,1.22498,1633.3,1633.2,45.61966926]
[1744254552681,4.43278,1633.3,1633.2,40.80916926]
[1744254552887,15.26675438,1633.3,1633.2,9.26e-06]
[1744254553078,17.53445438,1633.3,1633.2,9.26e-06]
[1744254553581,12.53445438,1633.3,1633.2,9.26e-06]
[1744254554284,17.53445438,1633.3,1633.2,9.26e-06]
[1744254554581,1.2252,1633.0,1632.9,7.82664805]
[1744254554782,19.50397438,1633.0,1632.9,6.38996805]
[1744254555077,14.50397438,1633.0,1632.9,6.38996805]
[1744254555470,16.77167438,1633.0,1632.9,6.38996805]
[1744254556183,16.77267438,1633.0,1632.9,6.38996805]
[1744254556778,10.26697438,1633.0,1632.9,8.73386805]
[1744254556980,3.2078,1633.0,1632.9,9.95914805]
[1744254557179,3.2078,1633.0,1632.9,3.56918]
[1744254557678,4.433,1633.0,1632.9,2.3439]
[1744254557987,4.433,1633.0,1632.9,3.56918]
[1744254558283,4.433,1633.0,1632.9,2.3439]
[1744254559080,1.22528,1632.9,1632.8,0.00916926]
[1744254559285,3.63677745,1632.9,1632.8,0.00916926]
[1744254560885,5.94607745,1632.9,1632.8,0.00916926]
[1744254561191,10.18507745,1632.9,1632.8,0.00916926]
[1744254561886,16.01905183,1632.9,1632.8,0.00916926]
[1744254562489,1.2255,1632.6,1632.5,40.8]
[1744254562691,1.23289745,1632.6,1632.5,42.02558]
[1744254562880,1.23289745,1632.6,1632.5,40.8]
[1744254563083,3.49089745,1632.6,1632.5,40.8]
[1744254563283,3.49089745,1632.6,1632.5,43.2461]
[1744254564694,3.49089745,1632.6,1632.5,40.8]
[1744254565286,1.22558,1632.5,1632.4,0.00916926]
[1744254565486,12.70065438,1632.5,1632.4,0.00916926]
[1744254565796,15.20245183,1632.5,1632.4,0.00916926]
[1744254567193,1.2258,1632.2,1632.1,40.8]
[1744254567396,4.44099745,1632.2,1632.1,40.8]
[1744254567799,6.87429745,1632.2,1632.1,40.8]
[1744254568897,4.44099745,1632.2,1632.1,42.02588]
[1744254569600,4.44099745,1632.2,1632.1,40.8]
[1744254569900,6.82169745,1632.2,1632.1,40.8]
[1744254570902,6.82169745,1632.2,1632.1,43.273]
[1744254571501,6.82169745,1632.2,1632.1,40.8]
[1744254573100,1.22588,1632.1,1632.0,0.00611288]
[1744254573296,3.46968,1632.1,1632.0,0.00611288]
[1744254573490,9.31105183,1632.1,1632.0,0.00611288]
[1744254573686,11.66625183,1632.1,1632.0,0.00611288]
[1744254574797,9.31105183,1632.1,1632.0,0.00611288]
[1744254574999,9.31105183,1632.1,1632.0,2.37851288]
[1744254575305,9.31105183,1632.1,1632.0,0.00611288]
[1744254575803,9.31105183,1632.1,1632.0,0.0371778]
[1744254576302,9.31105183,1632.1,1632.0,0.06823649]
[1744254577705,9.31105183,1632.1,1632.0,2.35253649]
[1744254578204,9.31105183,1632.1,1632.0,3.57848649]
[1744254578401,5.84137183,1632.1,1632.0,3.57848649]
[1744254578608,1.23327745,1632.1,1632.0,3.57848649]
[1744254579106,1.23327745,1632.1,1632.0,5.83878649]
[1744254579509,1.23327745,1632.1,1632.0,4.61283649]
[1744254579806,3.60187745,1632.1,1632.0,0.06823649]
[1744254580108,14.43585183,1632.1,1632.0,0.06823649]
[1744254580404,14.43585183,1632.1,1631.6,2.2603]
[1744254580405,1.22618,1631.7,1631.6,2.2603]
[1744254580597,4.43398,1631.7,1631.6,45.3446]
[1744254580998,4.44137745,1631.7,1631.6,45.3446]
[1744254581192,4.44137745,1631.7,1631.6,4.5446]
[1744254581396,4.44137745,1631.7,1631.6,0.02149447]
[1744254581594,6.81967745,1631.7,1631.6,0.02149447]
[1744254583408,4.44137745,1631.7,1631.6,1.24774447]
[1744254584007,3.21519745,1631.7,1631.6,1.24774447]
[1744254584304,4.44137745,1631.7,1631.6,1.24774447]
[1744254584506,3.21519745,1631.7,1631.6,1.24774447]
[1744254584700,4.44137745,1631.7,1631.6,0.02149447]
[1744254584905,4.44137745,1631.7,1631.6,1.24774447]
[1744254585096,6.69947745,1631.7,1631.6,0.02149447]
[1744254585302,12.53345183,1631.7,1631.6,0.02149447]
[1744254585904,1.22633,1631.5,1631.4,2.3307]
[1744254586096,1.2264,1631.4,1631.3,2.2603]
[1744254586302,9.31847438,1631.4,1631.3,2.2603]
[1744254586499,9.32587183,1631.4,1631.3,4.591]
[1744254586700,9.32587183,1631.4,1631.3,5.81748]
[1744254587004,7.06777183,1631.4,1631.3,5.81748]
[1744254587204,7.06777183,1631.4,1631.3,5.84844826]
[1744254588299,7.06777183,1631.4,1631.3,5.87933183]
[1744254588805,7.06777183,1631.4,1631.3,4.65285183]
[1744254589303,9.46557183,1631.4,1631.3,4.65285183]
[1744254589500,9.46557183,1631.4,1631.3,5.90109808]
[1744254589708,7.06777183,1631.4,1631.3,5.90109808]
[1744254590608,5.84137183,1631.4,1631.3,5.90109808]
[1744254590811,7.06777183,1631.4,1631.3,5.90109808]
[1744254591406,7.06777183,1631.4,1631.3,4.67461808]
[1744254591712,9.40767183,1631.4,1631.3,5.90109808]
[1744254594003,7.06777183,1631.4,1631.3,5.90109808]
[1744254594204,5.84137183,1631.4,1631.3,5.90109808]
[1744254594601,7.06777183,1631.4,1631.3,5.90109808]
[1744254594807,5.84137183,1631.4,1631.3,5.90109808]
[1744254595002,0.00739745,1631.4,1631.3,10.93203976]
[1744254595306,0.00739745,1631.4,1631.3,5.93203976]
[1744254596110,0.00739745,1631.4,1631.3,5.96298299]
[1744254597206,1.23379745,1631.4,1631.3,5.96298299]
[1744254597512,0.00739745,1631.4,1631.3,3.70268299]
[1744254597910,0.00739745,1631.4,1631.3,3.72441616]
[1744254600311,1.23379745,1631.4,1631.3,3.72441616]
[1744254600503,0.00739745,1631.4,1631.3,3.72441616]
[1744254600907,1.23379745,1631.4,1631.3,3.72441616]
[1744254601208,0.00739745,1631.4,1631.3,3.72441616]
[1744254601408,1.23379745,1631.4,1631.3,3.72441616]
[1744254601608,3.79879745,1631.4,1631.3,3.72441616]
[1744254602212,2.57239745,1631.4,1631.3,3.72441616]
[1744254602408,0.00739745,1631.4,1631.3,3.72441616]
[1744254603019,1.23379745,1631.4,1631.3,3.72441616]
[1744254603311,0.00739745,1631.4,1631.3,3.72441616]
[1744254603703,1.23379745,1631.4,1631.3,3.55718]
[1744254603902,1.23379745,1631.4,1631.3,3.75533898]
[1744254604310,0.00739745,1631.4,1631.3,3.75533898]
[1744254604908,0.00739745,1631.4,1631.3,3.7862618]
[1744254605719,12.06777183,1631.4,1631.3,1.8e-06]
[1744254605913,1.20507576,1630.8,1630.7,2.3334]
[1744254606407,5.77059822,1630.9,1630.7,2.3334]
[1744254606607,0.00919822,1630.9,1630.8,1.21945255]
[1744254607202,1.23597822,1630.9,1630.8,1.21945255]
[1744254608214,1.23597822,1630.9,1630.8,3.75095255]
[1744254608611,0.00919822,1630.9,1630.8,3.75095255]
[1744254609213,1.23597822,1630.9,1630.8,3.75095255]
[1744254609915,0.00919822,1630.9,1630.8,3.75095255]
[1744254610807,1.23597822,1630.9,1630.8,3.75095255]
[1744254611003,1.23597822,1630.9,1630.8,2.5315]
[1744254611209,1.227,1630.6,1630.5,45.5333]
[1744254611409,1.227,1630.6,1630.5,48.0734]
[1744254611610,1.227,1630.6,1630.5,49.30048]
[1744254611810,1.227,1630.6,1630.5,43.3401]
[1744254612016,3.7313,1630.6,1630.5,43.3401]
[1744254612613,3.7313,1630.6,1630.5,40.8]
[1744254613419,1.22732,1630.2,1630.0,96.6898]
[1744254613717,1.22738,1630.1,1630.0,2.4718]
[1744254613917,1.22746,1630.0,1629.9,40.8]
[1744254614112,1.22761,1629.8,1629.7,16.93413179]
[1744254614314,5.0827,1630.0,1629.7,16.93413179]
[1744254614618,1.23672822,1629.9,1629.8,2.5788]
[1744254615017,1.22761,1629.8,1629.7,55.19403179]
[1744254615317,1.22761,1629.8,1629.7,40.8]
[1744254615518,1.22776,1629.6,1629.5,16.97283179]
[1744254615720,3.2078,1629.8,1629.5,16.97283179]
[1744254615917,4.43556,1629.6,1629.5,13.04497179]
[1744254616217,2.3846,1629.7,1629.5,13.04497179]
[1744254616414,3.2078,1629.8,1629.6,2.5788]
[1744254616624,0.00919822,1629.9,1629.6,2.5788]
[1744254616812,1.23675822,1629.9,1629.7,2.445]
[1744254617014,1.23675822,1629.9,1629.8,2.5788]
[1744254617320,1.23672822,1629.9,1629.8,2.5788]
[1744254617816,3.77692822,1629.9,1629.8,2.5788]
[1744254618025,2.54939822,1629.9,1629.8,2.5788]
[1744254618416,2.54939822,1629.9,1629.8,3.80641]
[1744254618812,2.54939822,1629.9,1629.8,2.5788]
[1744254619014,3.77692822,1629.9,1629.8,2.5788]
[1744254619218,2.54939822,1629.9,1629.8,3.80641]
[1744254619521,0.00919822,1629.9,1629.8,2.5788]
[1744254619717,0.00919822,1629.9,1629.8,3.80641]
[1744254620314,0.00919822,1629.9,1629.8,2.5788]
[1744254620918,0.00919822,1629.9,1629.8,3.80641]
[1744254621124,1.23672822,1629.9,1629.8,2.5788]
[1744254621323,0.00919822,1629.9,1629.8,3.80641]
[1744254621725,0.00919822,1629.9,1629.8,2.5788]
[1744254621917,4.44452822,1629.9,1629.8,2.5788]
[1744254622317,1.22768,1629.7,1629.6,3.77506]
[1744254622517,1.22768,1629.7,1629.6,6.23546]
[1744254622819,3.77246,1629.8,1629.6,6.23546]
[1744254623023,3.77246,1629.8,1629.7,2.4604]
[1744254624920,1.22783,1629.5,1629.4,3.77891]
[1744254625119,1.2278,1629.6,1629.5,1.22783]
[1744254625322,1.2278,1629.6,1629.5,2.5476]
[1744254625823,3.6924,1629.6,1629.5,2.5476]
[1744254626021,2.4646,1629.6,1629.5,3.77543]
[1744254626222,11.4782726,1629.9,1629.6,1.22768]
[1744254626419,14.0008726,1629.9,1629.7,2.5915]
[1744254626628,5.8431726,1629.9,1629.8,1.22761]
[1744254626818,5.8431726,1629.9,1629.8,3.70731]
[1744254627018,7.0707026,1629.9,1629.8,2.4797]
[1744254627219,5.8431726,1629.9,1629.8,3.70731]
[1744254628127,7.0707026,1629.9,1629.8,3.70731]
[1744254628430,5.8431726,1629.9,1629.8,3.70731]
[1744254628837,7.0707026,1629.9,1629.8,3.70731]
[1744254629531,1.23672822,1629.9,1629.8,3.70731]
[1744254630326,0.00919822,1629.9,1629.8,3.70731]
[1744254630527,0.00919822,1629.9,1629.8,11.15611]
[1744254630836,0.00919822,1629.9,1629.8,7.94831]
[1744254631027,1.23672822,1629.9,1629.8,7.94831]
[1744254631531,0.00919822,1629.9,1629.8,7.94831]
[1744254632025,0.00919822,1629.9,1629.8,12.94831]
[1744254632224,0.00919822,1629.9,1629.8,7.94831]
[1744254632833,1.23672822,1629.9,1629.8,7.94831]
[1744254633534,1.23675822,1629.9,1629.8,1.22761]
[1744254633832,0.00919822,1629.9,1629.8,1.22761]
[1744254635934,0.00919822,1629.9,1629.8,3.58541]
[1744254638936,2.36929822,1629.9,1629.8,3.58541]
[1744254639240,0.00919822,1629.9,1629.8,3.58541]
[1744254642240,1.23672822,1629.9,1629.8,3.58541]
[1744254642447,1.22768,1629.7,1629.6,6.8143]
[1744254642739,1.22768,1629.7,1629.6,5.5767]
[1744254643143,3.74048,1629.7,1629.6,5.5767]
[1744254643336,3.74048,1629.7,1629.5,2.4441]
[1744254643337,1.22776,1629.6,1629.5,3.67187]
[1744254643534,3.74056,1629.6,1629.5,3.67187]
[1744254644437,1.22789,1629.5,1629.4,1.22787]
[1744254644750,2.5387,1629.5,1629.4,1.22787]
[1744254645037,2.5387,1629.5,1629.4,3.65717]
[1744254645634,1.22776,1629.6,1629.5,1.22783]
[1744254645846,3.76646,1629.6,1629.5,3.65713]
[1744254647129,3.76646,1629.6,1629.5,1.22783]
[1744254649144,1.22791,1629.4,1629.3,40.8]
[1744254649442,6.0953,1629.5,1629.4,1.22791]
[1744254649743,4.8674,1629.5,1629.4,1.22791]
[1744254650039,4.8674,1629.5,1629.4,3.75321]
[1744254650245,2.4274,1629.5,1629.4,3.75321]
[1744254650448,3.65523,1629.5,1629.4,3.75321]
[1744254652047,3.65523,1629.5,1629.3,40.8]
[1744254652048,1.22791,1629.4,1629.3,42.02792]
[1744254652245,3.76851,1629.4,1629.3,42.02792]
[1744254652445,3.76851,1629.4,1629.3,42.02798]
[1744254654239,2.5406,1629.4,1629.3,42.02798]
[1744254654745,2.5406,1629.4,1629.3,44.59148]
[1744254655450,4.43562,1629.6,1629.5,1.22783]
[1744254655650,5.6092,1629.6,1629.5,1.22783]
[1744254656051,3.62916,1629.6,1629.5,1.22783]
[1744254656246,4.8396,1629.7,1629.6,1.22776]
[1744254656446,2.4014,1629.8,1629.7,1.22768]
[1744254656648,2.4014,1629.8,1629.7,3.79118]
[1744254657852,3.62901,1629.8,1629.7,3.79118]
[1744254658055,3.62901,1629.8,1629.7,1.22768]
[1744254659659,2.4014,1629.8,1629.7,1.22768]
[1744254660658,3.06921,1629.7,1628.8,1.1016679]
[1744254660955,3.06921,1629.7,1629.1,1.22811]
[1744254660956,3.06978,1629.4,1629.1,1.22811]
[1744254661155,2.4805,1629.3,1629.2,42.02806]
[1744254661460,3.70848,1629.3,1629.2,40.8]
[1744254661759,6.91628,1629.3,1629.2,40.8]
[1744254661950,3.70848,1629.3,1629.2,40.8]
[1744254662558,3.70848,1629.3,1629.2,42.02806]
[1744254662752,3.70848,1629.3,1629.2,43.3331]
[1744254662959,2.4805,1629.3,1629.2,44.56116]
[1744254663374,3.70848,1629.3,1629.2,44.56116]
[1744254664075,4.8893,1629.6,1629.2,48.3331]
[1744254664267,1.22791,1629.4,1629.3,6.8921]
[1744254664466,9.14328656,1629.4,1629.3,4.359]
[1744254664967,5.93553656,1629.4,1629.2,46.38704]
[1744254665174,2.5904,1629.3,1629.2,48.92014]
[1744254665981,2.5904,1629.3,1629.2,44.56114]
[1744254666275,3.81838,1629.3,1629.2,48.92014]
[1744254666680,2.5904,1629.3,1629.2,48.92014]
[1744254666869,3.81838,1629.3,1629.2,45.159]
[1744254667269,6.17458,1629.3,1629.2,45.159]
[1744254669281,6.17458,1629.3,1629.2,46.38706]
[1744254671076,5.93543656,1629.5,1629.4,1.22791]
[1744254671286,1.22791,1629.4,1629.3,2.5825]
[1744254671483,3.79901,1629.4,1629.3,3.81048]
[1744254671686,3.79901,1629.4,1629.3,1.22798]
[1744254672383,3.79901,1629.4,1629.3,3.82088]
[1744254673277,4.70757656,1629.5,1629.4,1.22791]
[1744254673583,4.70757656,1629.5,1629.4,3.82081]
[1744254673782,10.85773656,1629.6,1629.5,1.22783]
[1744254673981,11.97647656,1629.6,1629.4,2.5929]
[1744254674182,9.62997656,1629.6,1629.5,1.22783]
[1744254674385,4.70757656,1629.6,1629.5,4.43563]
[1744254674582,4.70757656,1629.6,1629.5,8.79463]
[1744254674782,4.70757656,1629.6,1629.5,13.79463]
[1744254675980,4.70757656,1629.6,1629.5,4.43563]
[1744254676683,4.70757656,1629.6,1629.5,6.91333]
[1744254677680,7.20397656,1629.6,1629.5,3.70553]
[1744254678188,2.4964,1629.6,1629.5,3.70553]
[1744254678781,2.4964,1629.6,1629.4,4.359]
[1744254679093,3.72423,1629.6,1629.5,1.22783]
[1744254679587,3.72416,1629.6,1629.5,1.22783]
[1744254680791,2.4964,1629.6,1629.5,1.22783]
[1744254680991,3.72416,1629.6,1629.5,3.68173]
[1744254681390,3.72416,1629.6,1629.5,1.22783]
[1744254681788,1.22783,1629.5,1629.4,5.58683]
[1744254682091,2.4885,1629.5,1629.4,5.58683]
[1744254682590,2.4885,1629.5,1629.4,8.04073]
[1744254682993,3.71633,1629.5,1629.4,8.04073]
[1744254683193,3.71633,1629.5,1629.4,5.58683]
[1744254683488,2.4885,1629.5,1629.4,5.58683]
[1744254683690,3.71633,1629.5,1629.4,5.58683]
[1744254684088,2.4885,1629.5,1629.4,5.58683]
[1744254684494,3.71633,1629.5,1629.4,5.58683]
[1744254685082,2.4885,1629.5,1629.4,5.58683]
[1744254685588,1.22774,1629.7,1629.6,1.22776]
[1744254685789,3.70704,1629.7,1629.6,1.22776]
[1744254686194,2.4793,1629.7,1629.6,1.22776]
[1744254686392,2.4793,1629.7,1629.6,3.61396]
[1744254687590,7.18687656,1629.7,1629.6,3.61396]
[1744254688687,4.70757656,1629.7,1629.6,3.61396]
[1744254690294,7.08817656,1629.7,1629.6,3.61396]
[1744254690888,8.31585656,1629.7,1629.6,3.61396]
[1744254691090,1.22776,1629.6,1629.5,1.22778]
[1744254691290,6.02606,1629.6,1629.5,1.22778]
[1744254691995,4.7983,1629.6,1629.5,1.22778]
[1744254692290,4.7983,1629.6,1629.3,3.2078]
[1744254692491,3.60849,1629.5,1629.3,3.2078]
[1744254692695,2.3806,1629.4,1629.3,4.43578]
[1744254692994,2.3806,1629.4,1629.3,6.91518]
[1744254693990,2.4177,1629.6,1629.5,1.22783]
[1744254694192,6.16806,1629.6,1629.5,1.22783]
[1744254694387,1.22787,1629.5,1629.4,1.22785]
[1744254694583,2.5226,1629.5,1629.3,3.2078]
[1744254694894,2.5226,1629.5,1629.4,1.22791]
[1744254695084,2.5226,1629.5,1629.3,3.2078]
[1744254695288,1.22791,1629.4,1629.3,4.43572]
[1744254695595,6.1818,1629.5,1629.4,1.22791]
[1744254697590,4.9539,1629.5,1629.4,1.22791]
[1744254697795,4.9539,1629.5,1629.4,3.72851]
[1744254698195,6.18173,1629.5,1629.4,1.22791]
[1744254698887,7.12527656,1629.6,1629.5,1.22783]
[1744254699196,10.81617656,1629.6,1629.4,3.72844]
[1744254699394,2.5499,1629.5,1629.4,3.72844]
[1744254700297,3.77773,1629.5,1629.4,3.72844]
[1744254700699,3.77773,1629.5,1629.4,2.5006]
[1744254700996,3.77773,1629.5,1629.4,3.72851]
[1744254701197,3.77773,1629.5,1629.4,1.22791]
[1744254702290,1.22793,1629.4,1629.3,1.22791]
[1744254702497,3.79003,1629.4,1629.3,1.22791]
[1744254703790,7.12527656,1629.6,1629.5,1.22783]
[1744254703987,4.70757656,1629.6,1629.5,4.43563]
[1744254704194,4.70757656,1629.6,1629.5,11.18683]
[1744254704901,5.93533656,1629.6,1629.5,11.18683]
[1744254705299,4.70757656,1629.6,1629.5,11.18683]
[1744254705894,5.93533656,1629.6,1629.5,11.18683]
[1744254706102,4.70757656,1629.6,1629.5,11.18683]
[1744254706397,5.93533656,1629.6,1629.5,2.4572]
[1744254706595,8.40493656,1629.6,1629.5,3.68503]
[1744254706996,1.22798,1629.3,1629.2,40.8]
[1744254707395,3.69758,1629.3,1629.2,40.8]
[1744254707593,3.69758,1629.3,1629.2,43.2026]
[1744254707891,1.22798,1629.3,1629.2,44.4306]
[1744254708893,2.3594,1629.5,1629.2,43.2026]
[1744254709100,1.22791,1629.4,1629.3,3.81673]
[1744254710903,5.93548656,1629.4,1629.3,3.81673]
[1744254711196,5.93548656,1629.4,1629.3,2.5888]
[1744254711395,8.42208656,1629.4,1629.3,2.5888]
[1744254711598,8.42208656,1629.4,1629.3,3.81678]
[1744254712403,4.70757656,1629.4,1629.3,7.02458]
[1744254712603,4.70757656,1629.4,1629.3,9.41188]
[1744254712999,4.70757656,1629.4,1629.3,6.20408]
[1744254713503,5.93548656,1629.4,1629.3,2.5888]
[1744254713798,5.93548656,1629.4,1629.3,3.81678]
[1744254714000,5.93548656,1629.4,1629.3,2.5888]
[1744254714202,1.22798,1629.3,1629.2,40.8]
[1744254714496,3.79118,1629.3,1629.2,42.02806]
[1744254715095,3.79118,1629.3,1629.2,40.8]
[1744254715303,8.79118,1629.3,1629.2,40.8]
[1744254715503,1.22813,1629.1,1629.0,2.02040301]
[1744254715802,1.22828,1628.9,1628.8,14.42386445]
[1744254715998,8.73108,1628.9,1628.8,12.93835445]
[1744254716298,8.73108,1628.9,1627.7,28.67032615]
[1744254716299,3.2078,1628.5,1627.7,28.67032615]
[1744254716501,1.22911,1627.8,1627.7,21.31252615]
[1744254716701,7.06311,1627.8,1627.7,21.31252615]
[1744254716998,1.22927,1627.6,1627.5,26.12411851]
[1744254717204,14.56607,1627.6,1627.5,26.12411851]
[1744254718003,19.56607,1627.6,1627.5,26.12411851]
[1744254718198,19.56607,1627.6,1627.1,22.120243]
[1744254718199,1.22957,1627.2,1627.1,22.120243]
[1744254718402,7.8218,1627.2,1627.1,22.120243]
[1744254718606,9.05137,1627.2,1627.1,22.120243]
[1744254718997,14.05137,1627.2,1627.1,22.120243]
[1744254719204,9.55354712,1627.2,1627.1,22.120243]
[1744254719711,14.15797712,1627.2,1626.9,47.03494111]
[1744254720003,6.28249,1626.8,1625.5,3.2078]
[1744254720204,3.2078,1626.1,1625.9,9.71447615]
[1744254720406,3.2078,1626.1,1625.7,14.56147615]
[1744254720603,3.2078,1625.9,1625.7,47.42165835]
[1744254720801,3.2078,1625.9,1625.7,14.68231532]
[1744254721005,3.2078,1626.1,1626.0,1.23047]
[1744254721212,3.21699822,1626.3,1626.2,1.23032]
[1744254721502,3.75646679,1626.3,1626.1,14.60591532]
[1744254721809,3.21699822,1626.3,1626.2,3.55302]
[1744254722205,33.73470155,1626.3,1626.2,15.83623532]
[1744254722606,30.52690155,1626.3,1626.2,25.55071147]
[1744254722800,30.52690155,1626.3,1626.2,30.39971147]
[1744254723007,21.54168018,1626.7,1626.6,10.94449615]
[1744254723206,14.55477018,1626.7,1626.6,28.07319615]
[1744254723508,3.2078,1627.2,1627.1,1.22964]
[1744254723811,5.834,1627.6,1627.3,1.22944]
[1744254723812,3.2078,1627.4,1627.3,1.22944]
[1744254724205,3.2078,1627.4,1627.3,7.31139514]
[1744254724512,0.00919822,1627.5,1627.4,1.22942]
[1744254724815,3.21699822,1627.5,1627.3,6.08195514]
[1744254725108,3.21699822,1627.5,1627.3,7.31140514]
[1744254725511,3.21699822,1627.5,1627.4,1.22942]
[1744254725722,3.21699822,1627.5,1627.3,7.31139514]
[1744254726012,3.21699822,1627.5,1627.4,1.22942]
[1744254726211,4.44635822,1627.5,1627.1,48.61362909]
[1744254726411,3.2078,1627.3,1627.2,10.94398615]
[1744254726608,3.21699822,1627.5,1627.4,1.22942]
[1744254726806,3.21699822,1627.5,1627.4,10.94389615]
[1744254727007,0.00919822,1627.5,1627.4,10.94389615]
[1744254727307,0.00919822,1627.5,1627.4,30.56649615]
[1744254727705,0.00919822,1627.5,1627.4,17.65693708]
[1744254727905,0.00919822,1627.5,1627.4,18.88635708]
[1744254728214,0.00919822,1627.5,1627.4,13.88635708]
[1744254728900,0.00919822,1627.5,1627.4,18.88635708]
[1744254729213,6.96813375,1627.5,1627.4,18.88635708]
[1744254729406,5.62641375,1627.5,1627.4,2.29296153]
[1744254729613,0.43395375,1627.5,1627.4,3.52238153]
[1744254729804,3.75e-06,1627.5,1627.4,3.52238153]
[1744254731108,7.34476742,1627.5,1627.4,4.851]
[1744254731308,7.34476742,1627.5,1627.3,0.00919822]
[1744254731309,10.55256742,1627.5,1627.3,0.00919822]
[1744254731515,12.76306742,1627.5,1627.1,7.92508]
[1744254731813,7.84552895,1627.5,1627.4,1.22942]
[1744254732402,10.55256742,1627.5,1627.4,1.22942]
[1744254732607,10.55256742,1627.5,1627.4,40.8]
[1744254732809,12.76306742,1627.5,1627.4,42.02942]
[1744254733110,21.38656742,1627.5,1627.1,1.22958]
[1744254733411,1.22951,1627.3,1627.1,1.22964]
[1744254733614,6.87774,1627.4,1627.2,42.02951]
[1744254733814,9.58477847,1627.4,1627.2,42.02951]
[1744254734113,9.58477847,1627.4,1627.2,40.8]
[1744254734114,1.22949,1627.3,1627.2,40.8]
[1744254734325,1.2296,1627.2,1627.0,1.22968]
[1744254734510,5.6483,1627.1,1627.0,1.22968]
[1744254734715,5.6483,1627.1,1627.0,42.02968]
[1744254734915,8.35533847,1627.1,1627.0,44.29188]
[1744254735119,19.18933847,1627.1,1626.8,1.22987]
[1744254735312,5.834,1627.0,1626.7,1.22989]
[1744254735609,6.87814,1626.9,1626.8,40.8]
[1744254736117,9.58517847,1626.9,1626.8,40.8]
[1744254736521,15.41917847,1626.9,1626.8,40.8]
[1744254736904,16.4823,1626.9,1626.3,3.2078]
[1744254737108,3.07544,1626.4,1625.9,0.02364]
[1744254737303,3.2078,1626.0,1625.9,1.25414]
[1744254737505,4.43827,1626.0,1625.9,0.02364]
[1744254737714,4.43827,1626.0,1625.3,7.2922]
[1744254737715,10.91483847,1626.0,1625.3,7.2922]
[1744254737911,3.2078,1625.3,1624.9,0.01486228]
[1744254738211,3.2078,1625.0,1624.2,2.4412]
[1744254738415,3.2078,1625.0,1624.6,3.07885]
[1744254738722,3.2078,1625.4,1625.3,1.23098]
[1744254739214,3.2078,1625.4,1624.5,3.2078]
[1744254739419,3.21702736,1625.5,1625.4,1.23093]
[1744254739612,3.21702736,1625.5,1625.3,1.23095]
[1744254739811,3.21702736,1625.5,1625.2,5.142]
[1744254740008,3.21702736,1625.5,1625.2,7.4226]
[1744254740210,3.21702736,1625.5,1625.3,1.23096]
[1744254740411,3.21702736,1625.5,1625.4,2.2806]
[1744254740713,4.44787736,1625.5,1625.2,5.142]
[1744254740912,3.21702736,1625.5,1625.2,1.23106]
[1744254741113,3.21702736,1625.5,1625.2,3.51168]
[1744254741308,1.23093,1625.4,1625.2,2.2806]
[1744254741514,3.2078,1625.3,1625.1,5.142]
[1744254741919,3.2078,1625.3,1625.2,40.8]
[1744254742121,5.5215,1625.3,1625.2,40.8]
[1744254742418,6.7525,1625.3,1625.0,3.51178]
[1744254742617,3.2078,1625.1,1625.0,3.51178]
[1744254742919,3.2078,1625.1,1625.0,44.31178]
[1744254743218,8.2078,1625.1,1624.3,102.0888]
[1744254743414,3.2078,1624.7,1624.4,3.63165]
[1744254743720,3.73171688,1625.0,1624.7,1.23145]
[1744254743916,0.52391688,1625.0,1624.9,1.23131]
[1744254744222,3.2078,1625.4,1625.1,1.23116]
[1744254744420,3.2078,1625.2,1624.6,3.2078]
[1744254744619,3.2078,1624.7,1624.4,2.4]
[1744254745017,1.23155,1624.6,1624.4,2.4]
[1744254745211,4.43941,1624.5,1624.4,2.4]
[1744254745609,8.2078,1624.5,1624.1,0.10996607]
[1744254745814,4.4396,1624.3,1624.2,2.2907]
[1744254746112,3.2078,1624.5,1624.2,2.2907]
[1744254746424,3.2078,1624.5,1624.2,3.5225]
[1744254746917,1.23172,1624.4,1624.2,2.2907]
[1744254747128,3.2078,1624.5,1624.2,2.2907]
[1744254747318,4.43944,1624.5,1624.2,3.52251]
[1744254747519,1.23172,1624.4,1624.2,2.2907]
[1744254747720,3.2078,1624.3,1624.2,2.2907]
[1744254748025,4.43956,1624.3,1624.2,2.2907]
[1744254748221,1.23184,1624.2,1624.1,0.10996607]
[1744254748421,7.06584,1624.2,1624.1,0.10996607]
[1744254748613,3.0802,1623.9,1623.4,2.3448]
[1744254748817,3.07998,1624.0,1623.6,2.3448]
[1744254749017,3.2078,1623.7,1623.6,8.72308]
[1744254749213,0.00922736,1623.8,1623.7,1.23222]
[1744254749420,1.24136736,1623.8,1623.7,2.3448]
[1744254749621,0.00922736,1623.8,1623.0,6.612]